[Event "*** Titled Tuesday 3|2 Blitz"]
[Site "Chess.com"]
[Date "2016.08.02"]
[Round "7"]
[White "wonderfultime"]
[Black "brauliocuarta"]
[Result "1-0"]
[WhiteElo "2606"]
[BlackElo "2059"]
[TimeControl "180+2"]
[EndTime "12:32:58 PDT"]
[Termination "wonderfultime won by resignation"]

1. d4 {[%clk 0:03:01.9]} 1... Nf6 {[%clk 0:02:04.7]} 2. c4 {[%clk 0:03:00.9]}
2... c5 {[%clk 0:02:05]} 3. d5 {[%clk 0:03:01.9]} 3... b5 {[%clk 0:02:05.9]} 4.
Nd2 {[%clk 0:03:03.2]} 4... Qa5 {[%clk 0:01:54.5]} 5. Qc2 {[%clk 0:02:47.1]}
5... bxc4 {[%clk 0:01:51.5]} 6. e4 {[%clk 0:02:47.6]} 6... d6 {[%clk 0:01:48.7]}
7. Bxc4 {[%clk 0:02:48.1]} 7... Na6 {[%clk 0:01:46.9]} 8. Ne2 {[%clk 0:02:40.7]}
8... Nb4 {[%clk 0:01:45.9]} 9. Qc3 {[%clk 0:02:41]} 9... Ba6 {[%clk 0:01:44.5]}
10. O-O {[%clk 0:02:34.4]} 10... g6 {[%clk 0:01:30.2]} 11. a3 {[%clk 0:02:29.3]}
11... Bxc4 {[%clk 0:01:22]} 12. Nxc4 {[%clk 0:02:27.7]} 12... Qa6 {[%clk
0:01:00.9]} 13. b3 {[%clk 0:02:23.7]} 13... Bg7 {[%clk 0:00:20.8]} 14. axb4
{[%clk 0:02:21.7]} 14... Qb7 {[%clk 0:00:19]} 15. bxc5 {[%clk 0:02:12.4]} 15...
dxc5 {[%clk 0:00:19.4]} 16. Bb2 {[%clk 0:02:10.3]} 16... O-O {[%clk 0:00:20.2]}
17. Qc2 {[%clk 0:02:11.2]} 17... Rab8 {[%clk 0:00:21.3]} 18. Ng3 {[%clk
0:02:05.5]} 18... Qxb3 {[%clk 0:00:18.9]} 19. Qxb3 {[%clk 0:02:06.1]} 19... Rxb3
{[%clk 0:00:20.8]} 20. Rxa7 {[%clk 0:02:07.8]} 20... Rb4 {[%clk 0:00:19.8]} 21.
Rc1 {[%clk 0:02:09]} 21... Rc8 {[%clk 0:00:13.5]} 22. Ba3 {[%clk 0:02:05.8]}
22... Rb3 {[%clk 0:00:12.9]} 23. Rxe7 {[%clk 0:02:06.9]} 23... Ra8 {[%clk
0:00:08.3]} 24. Bxc5 {[%clk 0:02:02.6]} 24... Ra4 {[%clk 0:00:09.3]} 25. h3
{[%clk 0:01:59.5]} 25... h5 {[%clk 0:00:10.2]} 26. Nd6 {[%clk 0:01:57.5]} 26...
h4 {[%clk 0:00:10.9]} 27. Nf1 {[%clk 0:01:58.3]} 27... Bf8 {[%clk 0:00:09.6]}
28. Rxf7 {[%clk 0:01:57.4]} 28... Bxd6 {[%clk 0:00:08.7]} 29. Rxf6 {[%clk
0:01:58]} 29... Be5 {[%clk 0:00:07]} 30. Rxg6+ {[%clk 0:01:58.2]} 30... Kf7
{[%clk 0:00:08.8]} 31. Re6 {[%clk 0:01:59.1]} 31... Rxe4 {[%clk 0:00:09.1]} 32.
Be3 {[%clk 0:01:57.1]} 32... Rb2 {[%clk 0:00:07.6]} 33. Nd2 {[%clk 0:01:49]}
33... Rxe3 {[%clk 0:00:05.2]} 34. fxe3 {[%clk 0:01:50]} 34... Rxd2 {[%clk
0:00:05.7]} 35. Rxe5 {[%clk 0:01:51.4]} 1-0

[Event "*** Titled Tuesday 3|2 Blitz"]
[Site "Chess.com"]
[Date "2016.08.02"]
[Round "7"]
[White "RamonManon0g"]
[Black "sandropozo"]
[Result "0-1"]
[WhiteElo "2242"]
[BlackElo "2376"]
[TimeControl "180+2"]
[EndTime "12:33:14 PDT"]
[Termination "sandropozo won by resignation"]

1. d4 {[%clk 0:03:01.9]} 1... e6 {[%clk 0:02:58.6]} 2. c4 {[%clk 0:03:03]} 2...
Bb4+ {[%clk 0:02:58.6]} 3. Bd2 {[%clk 0:03:03.5]} 3... Bxd2+ {[%clk 0:02:58.7]}
4. Nxd2 {[%clk 0:03:05.4]} 4... f5 {[%clk 0:02:59.3]} 5. Ngf3 {[%clk 0:03:05.5]}
5... Nf6 {[%clk 0:03:00.1]} 6. g3 {[%clk 0:03:07.4]} 6... b6 {[%clk 0:02:58.6]}
7. Bg2 {[%clk 0:03:09.3]} 7... Bb7 {[%clk 0:02:59.6]} 8. O-O {[%clk 0:03:10.7]}
8... O-O {[%clk 0:03:00.7]} 9. b4 {[%clk 0:03:10.8]} 9... a5 {[%clk 0:02:54.5]}
10. a3 {[%clk 0:03:09.6]} 10... Qe7 {[%clk 0:02:54.3]} 11. Qb3 {[%clk
0:03:09.8]} 11... Ne4 {[%clk 0:02:49.9]} 12. Nxe4 {[%clk 0:02:56.7]} 12... Bxe4
{[%clk 0:02:51.4]} 13. Nd2 {[%clk 0:02:41.6]} 13... Bxg2 {[%clk 0:02:46.3]} 14.
Kxg2 {[%clk 0:02:43.5]} 14... Nc6 {[%clk 0:02:40.4]} 15. d5 {[%clk 0:02:40]}
15... Ne5 {[%clk 0:02:21.5]} 16. f4 {[%clk 0:02:37.1]} 16... Ng4 {[%clk
0:02:13.1]} 17. h3 {[%clk 0:02:38]} 17... Nf6 {[%clk 0:02:13.3]} 18. Rf3 {[%clk
0:02:22.6]} 18... exd5 {[%clk 0:02:09.9]} 19. Re3 {[%clk 0:02:23.5]} 19... Qf7
{[%clk 0:02:02.7]} 20. c5 {[%clk 0:02:10.4]} 20... bxc5 {[%clk 0:01:42.3]} 21.
bxc5 {[%clk 0:02:10]} 21... Rfe8 {[%clk 0:01:43.8]} 22. Nf3 {[%clk 0:01:55.2]}
22... Rxe3 {[%clk 0:01:32.3]} 23. Qxe3 {[%clk 0:01:57.1]} 23... Re8 {[%clk
0:01:33.3]} 24. Ne5 {[%clk 0:01:40.6]} 24... Qe6 {[%clk 0:01:31]} 25. Qd2 {[%clk
0:01:18]} 25... d6 {[%clk 0:01:29.8]} 26. cxd6 {[%clk 0:01:19.4]} 26... cxd6
{[%clk 0:01:31.4]} 27. Nc6 {[%clk 0:01:18.4]} 27... Qe4+ {[%clk 0:01:22]} 28.
Kf2 {[%clk 0:01:14.7]} 28... Qc4 {[%clk 0:01:18.5]} 29. Nxa5 {[%clk 0:01:12.9]}
29... Ne4+ {[%clk 0:01:18.4]} 30. Kg2 {[%clk 0:01:09.3]} 30... Nxd2 {[%clk
0:01:19.7]} 31. Nxc4 {[%clk 0:01:09.8]} 31... dxc4 {[%clk 0:01:20.7]} 32. Kf2
{[%clk 0:01:08.4]} 32... c3 {[%clk 0:01:21]} 33. Ke1 {[%clk 0:01:09.7]} 33...
Nb3 {[%clk 0:01:21.4]} 34. Ra2 {[%clk 0:01:10]} 34... d5 {[%clk 0:01:17.9]} 35.
Kd1 {[%clk 0:01:11]} 35... d4 {[%clk 0:01:19]} 36. a4 {[%clk 0:01:12.2]} 36...
d3 {[%clk 0:01:12]} 37. exd3 {[%clk 0:01:10.3]} 37... Nd4 {[%clk 0:01:13.6]} 38.
Rf2 {[%clk 0:00:48]} 38... c2+ {[%clk 0:01:11]} 39. Kd2 {[%clk 0:00:49.4]} 39...
Re1 {[%clk 0:01:10.2]} 0-1

[Event "*** Titled Tuesday 3|2 Blitz"]
[Site "Chess.com"]
[Date "2016.08.02"]
[Round "7"]
[White "diokletian"]
[Black "Maitreia"]
[Result "0-1"]
[WhiteElo "2429"]
[BlackElo "2365"]
[TimeControl "180+2"]
[EndTime "12:33:36 PDT"]
[Termination "Maitreia won by resignation"]

1. d4 {[%clk 0:03:01.9]} 1... Nf6 {[%clk 0:02:58.3]} 2. c4 {[%clk 0:03:02.1]}
2... g6 {[%clk 0:02:59.7]} 3. Nc3 {[%clk 0:03:02.5]} 3... Bg7 {[%clk 0:03:01.3]}
4. e4 {[%clk 0:03:02.8]} 4... O-O {[%clk 0:03:03.2]} 5. Nf3 {[%clk 0:03:03.1]}
5... d6 {[%clk 0:03:04.9]} 6. Be2 {[%clk 0:03:03.8]} 6... e5 {[%clk 0:03:06.5]}
7. O-O {[%clk 0:03:04.1]} 7... Nc6 {[%clk 0:03:08.1]} 8. d5 {[%clk 0:03:04.4]}
8... Ne7 {[%clk 0:03:09.6]} 9. a4 {[%clk 0:03:04.8]} 9... a5 {[%clk 0:03:08.7]}
10. Ne1 {[%clk 0:03:04.8]} 10... Nd7 {[%clk 0:03:07]} 11. Nd3 {[%clk 0:03:03]}
11... f5 {[%clk 0:03:06.6]} 12. f3 {[%clk 0:03:03.5]} 12... b6 {[%clk
0:03:02.6]} 13. Bd2 {[%clk 0:02:48.3]} 13... Kh8 {[%clk 0:03:01.4]} 14. Nb5
{[%clk 0:02:47.3]} 14... Nc5 {[%clk 0:02:59.6]} 15. Nf2 {[%clk 0:02:46.8]} 15...
fxe4 {[%clk 0:02:59.4]} 16. fxe4 {[%clk 0:02:43]} 16... Ng8 {[%clk 0:02:59.8]}
17. Bf3 {[%clk 0:02:37.6]} 17... Bh6 {[%clk 0:02:57.7]} 18. Bxh6 {[%clk
0:02:18.9]} 18... Nxh6 {[%clk 0:02:59.6]} 19. Ra3 {[%clk 0:02:19.4]} 19... Bd7
{[%clk 0:02:59.7]} 20. Qd2 {[%clk 0:02:18]} 20... Bxb5 {[%clk 0:02:58.5]} 21.
axb5 {[%clk 0:02:17.8]} 21... Ng8 {[%clk 0:02:56.9]} 22. Nd3 {[%clk 0:02:00.4]}
22... Nxd3 {[%clk 0:02:54.6]} 23. Qxd3 {[%clk 0:02:01.4]} 23... Qg5 {[%clk
0:02:55.1]} 24. Rfa1 {[%clk 0:01:58.9]} 24... Rf7 {[%clk 0:02:41.5]} 25. Qe3
{[%clk 0:01:52.7]} 25... Qxe3+ {[%clk 0:02:39]} 26. Rxe3 {[%clk 0:01:52.5]}
26... Raf8 {[%clk 0:02:40.9]} 27. b4 {[%clk 0:01:51.1]} 27... axb4 {[%clk
0:02:41.2]} 28. Rb3 {[%clk 0:01:52.1]} 28... Nf6 {[%clk 0:02:38]} 29. Rxb4
{[%clk 0:01:52.3]} 29... g5 {[%clk 0:02:38.7]} 30. h3 {[%clk 0:01:52.6]} 30...
h5 {[%clk 0:02:39.7]} 31. Re1 {[%clk 0:01:43.9]} 31... Kg7 {[%clk 0:02:33.4]}
32. Ra4 {[%clk 0:01:44.1]} 32... g4 {[%clk 0:02:32.6]} 33. hxg4 {[%clk
0:01:44.4]} 33... hxg4 {[%clk 0:02:34.5]} 34. Bd1 {[%clk 0:01:43.4]} 34... Kg6
{[%clk 0:02:35.7]} 35. g3 {[%clk 0:01:34.9]} 35... Kg5 {[%clk 0:02:36.7]} 36.
Ra7 {[%clk 0:01:23]} 36... Nxe4 {[%clk 0:02:35.5]} 37. Bxg4 {[%clk 0:01:20.9]}
37... Nxg3 {[%clk 0:02:13.4]} 38. Be6 {[%clk 0:01:20.9]} 38... Rh7 {[%clk
0:02:02.6]} 39. Kg2 {[%clk 0:01:19]} 39... Nf5 {[%clk 0:01:58.5]} 40. Bxf5
{[%clk 0:01:13.1]} 40... Rxf5 {[%clk 0:02:00.4]} 41. c5 {[%clk 0:01:14]} 41...
bxc5 {[%clk 0:01:45.1]} 42. b6 {[%clk 0:01:14.6]} 42... Kf6 {[%clk 0:01:42]} 43.
Re3 {[%clk 0:00:52.5]} 43... Rg7+ {[%clk 0:01:39.9]} 44. Rg3 {[%clk 0:00:52.7]}
44... Rxg3+ {[%clk 0:01:39.1]} 45. Kxg3 {[%clk 0:00:53.2]} 45... cxb6 {[%clk
0:01:40.3]} 46. Rd7 {[%clk 0:00:53.5]} 46... e4 {[%clk 0:01:38.2]} 47. Rxd6+
{[%clk 0:00:54.2]} 47... Ke5 {[%clk 0:01:39.4]} 48. Rxb6 {[%clk 0:00:55.2]}
48... Kxd5 {[%clk 0:01:39.4]} 0-1

[Event "*** Titled Tuesday 3|2 Blitz"]
[Site "Chess.com"]
[Date "2016.08.02"]
[Round "7"]
[White "DanielNaroditsky"]
[Black "BillieKimbah"]
[Result "1-0"]
[WhiteElo "2672"]
[BlackElo "2517"]
[TimeControl "180+2"]
[EndTime "12:33:55 PDT"]
[Termination "DanielNaroditsky won by resignation"]

1. d4 {[%clk 0:03:01.9]} 1... Nf6 {[%clk 0:03:00.7]} 2. Bf4 {[%clk 0:03:03.4]}
2... d5 {[%clk 0:03:00.3]} 3. e3 {[%clk 0:03:03.5]} 3... c5 {[%clk 0:03:01.4]}
4. dxc5 {[%clk 0:03:04.5]} 4... Nc6 {[%clk 0:02:50.4]} 5. Bb5 {[%clk 0:03:05.3]}
5... e6 {[%clk 0:02:51.4]} 6. b4 {[%clk 0:03:05.4]} 6... a6 {[%clk 0:02:50.7]}
7. Bxc6+ {[%clk 0:03:04.4]} 7... bxc6 {[%clk 0:02:48.4]} 8. Nf3 {[%clk
0:03:05.3]} 8... a5 {[%clk 0:02:49]} 9. c3 {[%clk 0:03:05.8]} 9... Ba6 {[%clk
0:02:49.2]} 10. Nd4 {[%clk 0:03:02.9]} 10... Qc8 {[%clk 0:02:45.8]} 11. Nd2
{[%clk 0:03:02.9]} 11... Nd7 {[%clk 0:02:42.1]} 12. N2f3 {[%clk 0:03:01.2]}
12... Be7 {[%clk 0:02:43.1]} 13. a4 {[%clk 0:02:18.5]} 13... Bc4 {[%clk
0:02:43.3]} 14. Bg3 {[%clk 0:02:13.8]} 14... O-O {[%clk 0:02:37]} 15. Nd2 {[%clk
0:02:15]} 15... Ba6 {[%clk 0:02:22.7]} 16. Qc2 {[%clk 0:02:07.5]} 16... g6
{[%clk 0:02:19.1]} 17. f4 {[%clk 0:01:53.3]} 17... Re8 {[%clk 0:02:14.5]} 18.
N2f3 {[%clk 0:01:51.1]} 18... Bf6 {[%clk 0:02:03.3]} 19. Kf2 {[%clk 0:01:45.5]}
19... Bc4 {[%clk 0:02:00.6]} 20. Rhe1 {[%clk 0:01:42.7]} 20... e5 {[%clk
0:01:42]} 21. fxe5 {[%clk 0:01:44.6]} 21... Nxe5 {[%clk 0:01:43.4]} 22. Nxe5
{[%clk 0:01:44.8]} 22... Bxe5 {[%clk 0:01:45]} 23. Bxe5 {[%clk 0:01:46.7]} 23...
Rxe5 {[%clk 0:01:46.5]} 24. Kg1 {[%clk 0:01:48.6]} 24... Qc7 {[%clk 0:01:40.5]}
25. Qf2 {[%clk 0:01:47.5]} 25... Re4 {[%clk 0:01:35.2]} 26. Qf6 {[%clk
0:01:38.8]} 26... Rc8 {[%clk 0:01:25.2]} 27. Rab1 {[%clk 0:01:24.6]} 27... Bd3
{[%clk 0:01:25.2]} 28. Rbd1 {[%clk 0:01:20.2]} 28... Bc4 {[%clk 0:01:26.1]} 29.
Rd2 {[%clk 0:01:21.3]} 29... Ree8 {[%clk 0:01:26]} 30. Rf2 {[%clk 0:01:19.2]}
30... Qb7 {[%clk 0:01:23.7]} 31. b5 {[%clk 0:01:16.5]} 31... cxb5 {[%clk
0:01:23.9]} 32. c6 {[%clk 0:01:18.4]} 32... Qc7 {[%clk 0:01:19.9]} 33. axb5
{[%clk 0:01:19.4]} 33... Rb8 {[%clk 0:01:21.4]} 34. h4 {[%clk 0:00:40.5]} 34...
Bxb5 {[%clk 0:01:09.7]} 35. h5 {[%clk 0:00:41.5]} 35... Qe7 {[%clk 0:00:43.1]}
36. Qxe7 {[%clk 0:00:41.5]} 36... Rxe7 {[%clk 0:00:44]} 37. Rb1 {[%clk
0:00:43.4]} 1-0

[Event "*** Titled Tuesday 3|2 Blitz"]
[Site "Chess.com"]
[Date "2016.08.02"]
[Round "7"]
[White "Iball95"]
[Black "profofchess"]
[Result "1/2-1/2"]
[WhiteElo "2457"]
[BlackElo "2324"]
[TimeControl "180+2"]
[EndTime "12:34:05 PDT"]
[Termination "Game drawn by agreement"]

1. e4 {[%clk 0:03:01.9]} 1... e6 {[%clk 0:03:01]} 2. d4 {[%clk 0:03:01.7]} 2...
d5 {[%clk 0:03:02.1]} 3. Nc3 {[%clk 0:03:03.3]} 3... Bb4 {[%clk 0:03:02.1]} 4.
exd5 {[%clk 0:03:04.3]} 4... exd5 {[%clk 0:03:02.9]} 5. Bd3 {[%clk 0:03:05.8]}
5... Nc6 {[%clk 0:03:01.7]} 6. a3 {[%clk 0:03:05.6]} 6... Bxc3+ {[%clk
0:03:02.8]} 7. bxc3 {[%clk 0:03:07.5]} 7... Nf6 {[%clk 0:02:59.8]} 8. Nf3 {[%clk
0:02:56.2]} 8... Bg4 {[%clk 0:02:33.1]} 9. O-O {[%clk 0:02:55.3]} 9... O-O
{[%clk 0:02:33.1]} 10. Bf4 {[%clk 0:02:50.4]} 10... Ne4 {[%clk 0:02:05.6]} 11.
c4 {[%clk 0:02:50.2]} 11... Nxd4 {[%clk 0:01:49.4]} 12. cxd5 {[%clk 0:02:44.6]}
12... Qxd5 {[%clk 0:01:34]} 13. Bxe4 {[%clk 0:02:36.9]} 13... Qxe4 {[%clk
0:01:34.9]} 14. Qxd4 {[%clk 0:02:38.2]} 14... Bxf3 {[%clk 0:01:35.5]} 15. Qxe4
{[%clk 0:02:12.2]} 15... Bxe4 {[%clk 0:01:36.4]} 16. Bxc7 {[%clk 0:02:13.2]}
16... Rac8 {[%clk 0:01:19.4]} 17. Bd6 {[%clk 0:02:04.4]} 17... Rfd8 {[%clk
0:01:20]} 18. Be7 {[%clk 0:02:05.5]} 18... Rd7 {[%clk 0:01:18]} 19. Bb4 {[%clk
0:02:06.7]} 19... Bxc2 {[%clk 0:01:00.9]} 20. Rac1 {[%clk 0:02:05.6]} 20... Rdd8
{[%clk 0:00:55.9]} 21. Rfe1 {[%clk 0:01:59.9]} 21... Ba4 {[%clk 0:00:54.2]} 22.
f3 {[%clk 0:01:56.3]} 22... Rxc1 {[%clk 0:00:53.3]} 23. Rxc1 {[%clk 0:01:58.2]}
23... Bc6 {[%clk 0:00:54.4]} 24. Re1 {[%clk 0:01:59.3]} 24... Re8 {[%clk
0:00:54.6]} 25. Kf2 {[%clk 0:01:55.7]} 25... Rxe1 {[%clk 0:00:47.3]} 26. Bxe1
{[%clk 0:01:57.6]} 26... f5 {[%clk 0:00:45.8]} 27. Ke3 {[%clk 0:01:58.3]} 27...
Kf7 {[%clk 0:00:47]} 28. g4 {[%clk 0:01:59.4]} 28... fxg4 {[%clk 0:00:46.6]} 29.
fxg4 {[%clk 0:02:01.3]} 29... Ke6 {[%clk 0:00:47.4]} 30. Kd4 {[%clk 0:01:59.3]}
30... a6 {[%clk 0:00:41.2]} 31. h4 {[%clk 0:01:53.5]} 31... Bf3 {[%clk
0:00:40.9]} 32. g5 {[%clk 0:01:53.3]} 32... Kf5 {[%clk 0:00:40.7]} 33. Bf2
{[%clk 0:01:52.4]} 33... g6 {[%clk 0:00:36.8]} 34. Be1 {[%clk 0:01:52.9]} 34...
Ke6 {[%clk 0:00:33.1]} 35. Bg3 {[%clk 0:01:50.5]} 35... Bc6 {[%clk 0:00:28.7]}
36. Be1 {[%clk 0:01:50.7]} 36... Kf5 {[%clk 0:00:26.2]} 37. Bg3 {[%clk
0:01:52.2]} 37... Kg4 {[%clk 0:00:27.6]} 38. Be1 {[%clk 0:01:53.7]} 38... Kf3
{[%clk 0:00:28.9]} 39. Bb4 {[%clk 0:01:53.2]} 39... Ke2 {[%clk 0:00:24.8]} 40.
Kc5 {[%clk 0:01:53.5]} 40... Kd3 {[%clk 0:00:25]} 41. Kb6 {[%clk 0:01:54]} 41...
Kc4 {[%clk 0:00:25.4]} 42. Bf8 {[%clk 0:01:54.7]} 42... Kb3 {[%clk 0:00:25.7]}
43. Bb4 {[%clk 0:01:55.6]} 43... Ka4 {[%clk 0:00:26.3]} 44. Bf8 {[%clk
0:01:56.1]} 44... Be4 {[%clk 0:00:12.4]} 45. Bc5 {[%clk 0:01:56.9]} 45... Bc6
{[%clk 0:00:13.5]} 46. Bf8 {[%clk 0:01:58.4]} 46... Kb3 {[%clk 0:00:14.7]} 47.
Bc5 {[%clk 0:01:59.6]} 47... Kc4 {[%clk 0:00:15.9]} 48. Bf8 {[%clk 0:02:00.3]}
48... Kd5 {[%clk 0:00:16.7]} 49. Bc5 {[%clk 0:02:01.7]} 49... Ke4 {[%clk
0:00:17.9]} 50. Bb4 {[%clk 0:02:01.7]} 50... Kd3 {[%clk 0:00:17.4]} 51. Bc5
{[%clk 0:02:02.4]} 51... Ke2 {[%clk 0:00:18.5]} 52. Bb4 {[%clk 0:02:02.9]} 52...
Kf3 {[%clk 0:00:19.2]} 53. Ba5 {[%clk 0:02:03.8]} 53... Kg4 {[%clk 0:00:19]} 54.
Be1 {[%clk 0:02:05.3]} 54... Kh3 {[%clk 0:00:20.2]} 55. Kc5 {[%clk 0:02:05.4]}
55... Kg4 {[%clk 0:00:19.9]} 1/2-1/2

[Event "*** Titled Tuesday 3|2 Blitz"]
[Site "Chess.com"]
[Date "2016.08.02"]
[Round "7"]
[White "viditchess"]
[Black "simonachess"]
[Result "1-0"]
[WhiteElo "2559"]
[BlackElo "2150"]
[TimeControl "180+2"]
[EndTime "12:34:17 PDT"]
[Termination "viditchess won on time"]

1. d4 {[%clk 0:03:01.9]} 1... Nf6 {[%clk 0:03:00.2]} 2. c4 {[%clk 0:03:02.3]}
2... e5 {[%clk 0:03:01.2]} 3. dxe5 {[%clk 0:03:02.7]} 3... Ng4 {[%clk
0:03:02.3]} 4. Bf4 {[%clk 0:03:03.7]} 4... g5 {[%clk 0:03:01.7]} 5. Bg3 {[%clk
0:03:04.3]} 5... Bg7 {[%clk 0:03:00.9]} 6. e3 {[%clk 0:02:57.6]} 6... Nxe5
{[%clk 0:03:01.1]} 7. h4 {[%clk 0:02:55.6]} 7... g4 {[%clk 0:02:59.7]} 8. Nc3
{[%clk 0:02:55.6]} 8... h5 {[%clk 0:02:55.5]} 9. Qc2 {[%clk 0:02:50]} 9... d6
{[%clk 0:02:49.6]} 10. O-O-O {[%clk 0:02:48.1]} 10... Be6 {[%clk 0:02:49.2]} 11.
Nd5 {[%clk 0:02:38.2]} 11... Nbd7 {[%clk 0:02:40]} 12. f4 {[%clk 0:02:32.5]}
12... Ng6 {[%clk 0:02:40.2]} 13. Ne2 {[%clk 0:02:10.9]} 13... c6 {[%clk
0:02:29.6]} 14. Ndc3 {[%clk 0:02:05.2]} 14... Qa5 {[%clk 0:02:21.4]} 15. Nd4
{[%clk 0:01:57.8]} 15... O-O-O {[%clk 0:02:21.9]} 16. Nxe6 {[%clk 0:01:51.6]}
16... fxe6 {[%clk 0:02:19.8]} 17. Be1 {[%clk 0:01:18.5]} 17... Ndf8 {[%clk
0:02:15.2]} 18. Kb1 {[%clk 0:01:16.3]} 18... Qc7 {[%clk 0:02:10.9]} 19. Ne4
{[%clk 0:01:15.3]} 19... d5 {[%clk 0:02:05.9]} 20. Ng5 {[%clk 0:01:14.2]} 20...
Bf6 {[%clk 0:01:21]} 21. Bd3 {[%clk 0:01:05.4]} 21... dxc4 {[%clk 0:01:14.3]}
22. Bxc4 {[%clk 0:01:03.2]} 22... Rxd1+ {[%clk 0:01:15.1]} 23. Qxd1 {[%clk
0:01:05.1]} 23... Qe7 {[%clk 0:01:16.8]} 24. g3 {[%clk 0:01:03.9]} 24... Bxg5
{[%clk 0:01:01.9]} 25. hxg5 {[%clk 0:01:05.8]} 25... Nd7 {[%clk 0:01:02.4]} 26.
Bc3 {[%clk 0:01:05.4]} 26... Rh7 {[%clk 0:01:00.8]} 27. Qc2 {[%clk 0:01:03.2]}
27... Qf7 {[%clk 0:00:58.8]} 28. Bd3 {[%clk 0:00:58]} 28... Ndf8 {[%clk
0:00:55.3]} 29. f5 {[%clk 0:00:51.3]} 29... exf5 {[%clk 0:00:53.4]} 30. Bxf5+
{[%clk 0:00:53.2]} 30... Kb8 {[%clk 0:00:52.9]} 31. Rd1 {[%clk 0:00:52.8]} 31...
h4 {[%clk 0:00:32.2]} 32. Rd8+ {[%clk 0:00:52.4]} 32... Kc7 {[%clk 0:00:33.1]}
33. Rc8+ {[%clk 0:00:53.3]} 33... Kd6 {[%clk 0:00:25.8]} 34. Bb4+ {[%clk
0:00:47.3]} 1-0

[Event "*** Titled Tuesday 3|2 Blitz"]
[Site "Chess.com"]
[Date "2016.08.02"]
[Round "7"]
[White "Tesla37"]
[Black "Zhani-Z"]
[Result "1-0"]
[WhiteElo "2660"]
[BlackElo "2286"]
[TimeControl "180+2"]
[EndTime "12:34:17 PDT"]
[Termination "Tesla37 won by resignation"]

1. e4 {[%clk 0:03:01.9]} 1... e6 {[%clk 0:02:55.5]} 2. d4 {[%clk 0:03:01.8]}
2... d5 {[%clk 0:02:56.6]} 3. e5 {[%clk 0:03:03.3]} 3... c5 {[%clk 0:02:57.2]}
4. c3 {[%clk 0:03:04.8]} 4... Nc6 {[%clk 0:02:58.8]} 5. Nf3 {[%clk 0:03:06.3]}
5... Bd7 {[%clk 0:03:00.5]} 6. Be2 {[%clk 0:03:07.8]} 6... Nge7 {[%clk
0:02:58.2]} 7. Na3 {[%clk 0:03:06.8]} 7... cxd4 {[%clk 0:02:57]} 8. cxd4 {[%clk
0:03:06.8]} 8... Nf5 {[%clk 0:02:58.5]} 9. Nc2 {[%clk 0:03:08.2]} 9... Qb6
{[%clk 0:02:58.1]} 10. h4 {[%clk 0:03:07.5]} 10... Na5 {[%clk 0:02:52.9]} 11. h5
{[%clk 0:03:05.7]} 11... h6 {[%clk 0:02:46.1]} 12. O-O {[%clk 0:03:02.4]} 12...
Bb5 {[%clk 0:02:43.9]} 13. g4 {[%clk 0:02:52.2]} 13... Ne7 {[%clk 0:02:38.5]}
14. b3 {[%clk 0:02:51.3]} 14... Bxe2 {[%clk 0:02:32.6]} 15. Qxe2 {[%clk
0:02:51.7]} 15... Nec6 {[%clk 0:02:20.2]} 16. Be3 {[%clk 0:02:43.5]} 16... Nb4
{[%clk 0:02:12.6]} 17. Nfe1 {[%clk 0:02:41.1]} 17... Nac6 {[%clk 0:02:07.4]} 18.
f4 {[%clk 0:02:38.9]} 18... Be7 {[%clk 0:01:25.4]} 19. f5 {[%clk 0:02:38.2]}
19... Bg5 {[%clk 0:01:15.9]} 20. fxe6 {[%clk 0:02:27.7]} 20... fxe6 {[%clk
0:01:16.3]} 21. Bxg5 {[%clk 0:02:23.4]} 21... hxg5 {[%clk 0:01:16.9]} 22. Qe3
{[%clk 0:02:21.4]} 22... O-O-O {[%clk 0:01:11.9]} 23. Nxb4 {[%clk 0:02:14]}
23... Qxb4 {[%clk 0:01:02]} 24. Rd1 {[%clk 0:02:13.4]} 24... g6 {[%clk
0:00:58.2]} 25. hxg6 {[%clk 0:02:11.8]} 25... Rdg8 {[%clk 0:00:34.4]} 26. Rf6
{[%clk 0:02:08.6]} 26... Rh4 {[%clk 0:00:13.7]} 27. Ng2 {[%clk 0:00:50.5]} 27...
Rxg4 {[%clk 0:00:14.2]} 28. Qf3 {[%clk 0:00:45]} 28... Rxd4 {[%clk 0:00:09.9]}
29. Rf1 {[%clk 0:00:46.1]} 29... Kc7 {[%clk 0:00:06]} 30. Rxe6 {[%clk
0:00:41.2]} 30... Rg4 {[%clk 0:00:05.8]} 31. Qxd5 {[%clk 0:00:35.9]} 31... Qb6+
{[%clk 0:00:05.3]} 32. Rf2 {[%clk 0:00:34.9]} 32... Rf8 {[%clk 0:00:06.3]} 33.
Qd6+ {[%clk 0:00:34.9]} 33... Kc8 {[%clk 0:00:07.1]} 34. Qxf8+ {[%clk
0:00:35.4]} 1-0